Cogmind - Beta 15 @@@ ROGUE MODE // 2025.09.08 @ 16:23:40 Player: IAMTRASHMAN Result: Destroyed by Lightning with EMDS Performance ------------- Evolutions (4) 2000 Regions Visited (13) 2600 Robots Destroyed (136) 680 Value Destroyed (4000) 4000 Prototype IDs (14) 280 Alien Tech Used (0) 0 Bonus (1094) 1094 TOTAL SCORE: 10654 Bonus ------- High Alert Combat Kills 64 Follower Combat Kills 1689 Network Hubs Disabled 200 Met Data Miner 300 Built Enhanced Grunts 300 Friendly Fire -1459 Cogmind --------- Core Integrity 0/850 Matter 275/300 Energy 72/100 System Corruption 17% Temperature Cool (0) Movement Core (100) Ox1 Location -6/Hub_04(d) Parts ------- > --- POWER (1) -------- (None) > --- PROPULSION (8) --- (None) > --- UTILITY (4) ------ Experimental Targeting Computer Improved Hacking Suite Improved System Shield > --- WEAPON (2) ------- Phasing Sabre > --- INVENTORY (5) ---- Hybrid Deuterium Engine Layered Medium Armor Plating Advanced Shield Generator Dynamic Insulation System Peak State ------------ > --- POWER ------------ Quantum Reactor > --- PROPULSION ------- Gravmag Array Gravmag Array Gravmag Array Gravmag Array > --- UTILITY ---------- High-capacity Storage Unit Advanced Melee Analysis Suite Core Analyzer Improved Light Armor Plating > --- WEAPON ----------- Advanced KE Penetrator Phasing Sabre > --- INVENTORY -------- Fission Core Combat Airjet Gravmag Array Improved Cooling System Coolant Injector Huge Storage Unit Energy Well IFF Parser Advanced Terrain Scan Processor Improved Light Armor Plating Improved Light Armor Plating Improved Heavy Armor Plating Advanced Shield Generator Advanced Shield Generator Dynamic Insulation System Dynamic Insulation System Heavy Missile Launcher Phasing Sabre [Rating: 84] Favorites ----------- Power Improved Deuterium Engine Engine Improved Deuterium Engine Power Core Light Nuclear Core Reactor Quantum Reactor Propulsion Aluminum Leg Treads Light Treads Leg Aluminum Leg Wheel Armored Wheel Hover Unit Gravmag Array Flight Unit VTOL Module Utility Seismic Detector Device Seismic Detector Storage Huge Storage Unit Processor Core Analyzer Hackware Improved System Shield Protection Improved Light Armor Plating Weapon Phasing Sabre Energy Gun High-powered Field Laser Energy Cannon Cooled Particle Cannon Ballistic Gun High-powered Shotgun Ballistic Cannon Improved Light Cannon Launcher Heavy Missile Launcher Special Weapon Mining Laser Impact Weapon Power Maul Slashing Weapon Phasing Sabre Build | -11 -10 -9 -9 -8 -7 -7 -7 -6 -6 -6 -6 -6 -6 ------- Run | Yrd Mat Mat Min Mat Fac Low Dat Pro Fac Ext Cet Arc Hub Slots Evolved 8 | . . 2 . 2 2 . . . 2 . . . . Power . | . . . . . . . . . . . . . . Propulsion 6 | . . 2 . 2 2 . . . . . . . . Utility 2 | . . . . . . . . . 2 . . . . Weapon . | . . . . . . . . . . . . . . Parts Attached 120 | 8 11 2 3 26 14 1 . 2 29 8 7 4 5 Power 12 | 1 1 . 1 3 1 . . . 2 1 1 . 1 Engine 8 | 1 1 . 1 1 1 . . . 2 1 . . . Core 2 | . . . . 2 . . . . . . . . . Reactor 2 | . . . . . . . . . . . 1 . 1 Propulsion 49 | 2 4 2 2 14 4 . . . 15 . 3 2 1 Treads 5 | . 2 . . 2 . . . . 1 . . . . Leg 18 | 2 . 2 . 8 1 . . . 5 . . . . Wheel 11 | . 2 . 2 4 3 . . . . . . . . Hover 10 | . . . . . . . . . 4 . 3 2 1 Flight 5 | . . . . . . . . . 5 . . . . Utility 31 | 3 . . . 3 3 . . 2 10 5 1 2 2 Device 14 | 2 . . . . 2 . . 1 7 1 1 . . Storage 4 | 1 . . . 2 1 . . . . . . . . Processor 3 | . . . . . . . . . . 2 . . 1 Hackware 3 | . . . . . . . . . . . . 2 1 Protection 7 | . . . . 1 . . . 1 3 2 . . . Artifact . | . . . . . . . . . . . . . . Weapon 28 | 2 6 . . 6 6 1 . . 2 2 2 . 1 Energy Gun 9 | 1 2 . . 2 3 . . . 1 . . . . Energy Cannon 2 | . . . . . 1 . . . . . . . 1 Ballistic Gun 5 | 1 . . . 2 . . . . 1 . 1 . . Ballistic Cannon 2 | . 1 . . 1 . . . . . . . . . Launcher 2 | . . . . . 2 . . . . . . . . Special Weapon 1 | . 1 . . . . . . . . . . . . Impact Weapon 4 | . 2 . . 1 . 1 . . . . . . . Slashing Weapon 3 | . . . . . . . . . . 2 1 . . Piercing Weapon . | . . . . . . . . . . . . . . Special Melee Weapon . | . . . . . . . . . . . . . . Unidentified Prototypes 7 | . . . . 2 1 . . . 1 . 1 . 2 Parts Lost 26 | . . 1 . 3 . . . 1 7 2 . . 12 Power 2 | . . . . . . . . . . . . . 2 Propulsion 18 | . . 1 . 3 . . . 1 6 . . . 7 Utility 2 | . . . . . . . . . . 1 . . 1 Weapon 4 | . . . . . . . . . 1 1 . . 2 Highest Loss Streak 12 | . . 1 . 1 . . . 1 4 1 . . 12 To Critical Strikes . | . . . . . . . . . . . . . . Average Backups 20 | 6 7 7 7 22 24 25 25 25 24 20 17 18 16 Power 2 | . . 1 1 3 2 2 2 2 1 1 1 1 1 Propulsion . | 3 3 1 . . . . . . . 2 1 1 . Utility 13 | . 1 3 3 12 18 18 18 18 17 13 13 13 11 Weapon 4 | 1 2 2 3 6 4 4 5 5 4 3 1 2 2 Tool/Special . | . . . . . . . . . . . . . . Unused Backups 37 | . 5 . . 4 6 1 . . 2 3 . 2 14 Power 4 | . . . . . 2 . . . . . . 1 1 Propulsion 4 | . 3 . . . . . . . . . . . 1 Utility 19 | . . . . . 2 1 . . 2 3 . 1 10 Weapon 10 | . 2 . . 4 2 . . . . . . . 2 Tool/Special . | . . . . . . . . . . . . . . Average Slot Usage (%) 88 | . 99 80 92 96 92 96 93 95 84 71 77 83 77 Engine 6 | . 14 11 11 4 7 7 7 7 6 6 1 . . Treads 2 | . 15 . . 5 . . . . 1 . . . . Leg 21 | . 9 10 21 28 45 46 46 41 16 . . . . Wheel 8 | . 3 15 15 17 8 15 15 15 7 . . . . Hover 9 | . . . . . . . . . 8 26 30 36 34 Device 8 | . 14 11 11 8 6 7 7 6 15 8 . . 4 Storage 7 | . 14 11 11 9 7 7 7 7 6 6 6 6 5 Processor 1 | . . . . . . . . . . 1 13 7 1 Protection 2 | . . . . . . . . . 4 7 5 6 . Energy Gun 1 | . 3 . . 1 3 4 . 1 4 1 . . . Energy Cannon 1 | . . . . . 4 5 1 6 3 . . . . Ballistic Gun 3 | . 9 . . 12 . . . . . . . . . Ballistic Cannon 1 | . 4 . . 3 2 . . . . . . . . Impact Weapon 4 | . 7 22 22 . 3 1 7 5 3 4 . . . Slashing Weapon 2 | . . . . . . . . . . 5 12 13 11 Peak Build Rating 84 | 9 8 8 10 32 41 41 40 44 73 80 84 81 84 Average Rating 42 | 7 7 7 9 24 35 38 35 41 54 73 80 78 73 On Entrance 38 | . 7 7 8 10 32 41 40 40 42 72 77 81 80 Naked Turns . | . . . . . . . . . . . . . . Heaviest Build 109 | 12 14 13 13 98 105 102 101 108 109 107 71 71 71 Greatest Support 92 | 20 40 26 20 82 92 24 24 82 80 80 80 79 77 Greatest Overweight (x) 26 | . 1 1 1 5 8 4 4 4 26 1 . 1 1 Average Overweight (x) 1 | . . . . 1 1 3 3 3 2 . . . . Largest Inventory Capacity 25 | 8 8 8 8 25 25 25 25 25 25 25 20 20 20 Average Capacity 21 | 7 8 8 8 23 25 25 25 25 25 22 20 20 18 Most Carried 25 | 8 8 8 8 25 25 25 25 25 25 25 20 20 20 Average Carried 20 | 6 7 7 7 23 24 24 25 25 24 22 19 19 18 Final Capacity 25 | 8 8 8 8 25 25 25 25 25 25 20 20 20 5 Final Carried 25 | 8 8 7 7 25 25 25 25 25 25 20 20 20 4 Class Distribution -------------------- 47% | Scavenger-Mutant 42% | Mutant 6% | Commander-Gladiator 3% | Commander-Mutant Dominant Class ---------------- Mutant | -10/Materials Mutant | -9/Materials Scavenger-Mutant | -9/Mines Scavenger-Mutant | -8/Materials Scavenger-Mutant | -7/Factory Scavenger-Mutant | -7/Lower Caves Scavenger-Mutant | -7/Data Miner Mutant | -6/Proximity Caves Mutant | -6/Factory Mutant | -6/Extension Commander-Gladiator | -6/Cetus Commander-Mutant | -6/Archives Scavenger-Mutant | -6/Hub_04(d) Resources | -11 -10 -9 -9 -8 -7 -7 -7 -6 -6 -6 -6 -6 -6 ----------- Run | Yrd Mat Mat Min Mat Fac Low Dat Pro Fac Ext Cet Arc Hub Matter Collected 3651 | 316 325 37 114 937 272 119 . 118 759 339 114 60 141 Remotely . | . . . . . . . . . . . . . . Salvage Created 4831 | 211 241 54 326 1033 543 . . 258 773 649 . 324 419 Parts 233 | 28 15 3 12 50 26 . . 9 19 28 . 29 14 Haulers Intercepted 6 | . . . . 2 . . . . 1 . . . 3 Recyclers Shooed 7 | 1 . . 1 4 . . . . . 1 . . . Parts Field Recycled . | . . . . . . . . . . . . . . Retrieved Matter . | . . . . . . . . . . . . . . Parts Self-Destructed 7 | . . . . . . 2 . 5 . . . . . Prevented . | . . . . . . . . . . . . . . Kills | -11 -10 -9 -9 -8 -7 -7 -7 -6 -6 -6 -6 -6 -6 ------- Run | Yrd Mat Mat Min Mat Fac Low Dat Pro Fac Ext Cet Arc Hub Combat Hostiles Destroyed 73 | . 6 2 3 21 3 . . 13 15 10 . . . Melee 9 | . . 1 3 1 . . . . . 4 . . . Guns 23 | . 3 . . 14 . . . . 6 . . . . Cannons 11 | . 2 . . 6 1 . . 1 1 . . . . AOE 27 | . . . . . 2 . . 12 7 6 . . . Classes Destroyed 15 | 3 3 . . 6 1 . . 1 1 . . . . Worker 10 | 2 1 . . 4 . . . . 1 . . . 2 Builder 6 | . 1 . . . 2 . . . . 2 . . 1 Tunneler 9 | 5 . . 1 . . . . . . 3 . . . Hauler 6 | . . . . 2 . . . . 1 . . . 3 Recycler 11 | 1 1 . 2 1 4 . . . . 2 . . . Mechanic 2 | . . . . 2 . . . . . . . . . Operator 13 | . . . . 1 1 . . . . 1 . 9 1 Watcher 5 | . . . . 3 . . . . 2 . . . . Swarmer 19 | . 3 1 . 6 . . . 5 . 4 . . . Saboteur 1 | . . . . . . . . . 1 . . . . Grunt 38 | . 3 1 3 10 2 . . 6 7 6 . . . Brawler 3 | . . . . . . . . 1 2 . . . . Duelist 3 | . . . . 1 . . . . 2 . . . . Sentry 6 | . . . . 4 . . . 1 1 . . . . Programmer 3 | . . . . . 1 . . . 2 . . . . Best Kill Streak 11 | 6 3 1 3 11 7 . . 9 5 4 . 4 2 Combat Bots Only 9 | . 3 1 3 5 2 . . 9 5 3 . . . Max Kills in Single Turn 3 | 1 1 1 1 2 3 . . 2 3 3 1 1 2 Gunslinging . | . . . . . . . . . . . . . . Exploded 3 | . . . . . 2 . . 2 3 3 . . . Melee 1 | . . 1 1 1 . . . . . 1 . . . Uniques/NPCs Destroyed 1 | . . . . . . . . . . . 1 . . A7 (-6/Cetus) Combat | -11 -10 -9 -9 -8 -7 -7 -7 -6 -6 -6 -6 -6 -6 -------- Run | Yrd Mat Mat Min Mat Fac Low Dat Pro Fac Ext Cet Arc Hub Hostile Shots Fired 776 | . 29 23 18 101 5 . . 108 183 160 1 2 146 Missed 288 | . 9 10 7 23 2 . . 47 68 71 1 1 49 Hits 488 | . 20 13 11 78 3 . . 61 115 89 . 1 97 Projectile 488 | . 20 13 11 78 3 . . 61 115 89 . 1 97 AOE 1 | . . . . . . . . . . . . . 1 Critical Strikes 14 | . . . 1 3 . . . 3 4 1 . . 2 Damage Taken 6759 | . 214 122 121 1126 44 . . 970 1456 1019 15 27 1645 Core 1220 | . 26 26 24 117 15 . . 142 180 94 . 27 569 Absorbed by Shields 530 | . . . . . . . . 212 11 292 15 . . Regen/Repaired (Parts) 159 | . . . . 59 100 . . . . . . . . Core Remaining (%) 86 | 100 89 . 87 78 . . . 77 . . . . . Volleys Fired 221 | 12 19 . . 105 18 . . 15 38 10 . . 4 Largest 2 | 2 2 . . 2 2 . . 2 2 1 . . 1 Hottest 160 | 60 120 . . 78 100 . . 100 160 39 . . 39 Shots Fired 387 | 24 32 . . 192 34 . . 25 65 11 . . 4 Gun 236 | 24 17 . . 140 15 . . 5 33 . . . 2 Cannon 106 | . 8 . . 52 17 . . 8 21 . . . . Launcher 38 | . . . . . 2 . . 12 11 11 . . 2 Special 7 | . 7 . . . . . . . . . . . . Kinetic 210 | 12 21 . . 175 . . . . . . . . 2 Thermal 122 | 12 11 . . . 32 . . 13 54 . . . . Explosive 38 | . . . . . 2 . . 12 11 11 . . 2 Electromagnetic 17 | . . . . 17 . . . . . . . . . Robot Hit Streak 10 | 8 6 . . 9 4 . . 7 10 7 . . . Robot Miss Streak 8 | 2 3 . . 8 2 . . 2 2 . . . 1 Penetration Max . | . . . . . . . . . . . . . . Secondary Targets 5 | . . . . 4 . . . . 1 . . . . Max Gunslinging Chain 1 | . . . . 1 . . . . 1 . . . . Shots Hit Robots 294 | 13 20 7 12 109 15 . . 15 56 18 5 12 12 Core Hits 207 | 9 9 1 5 61 10 . . 29 38 32 1 4 8 Critical Kills 8 | . . 1 4 2 . . . . . 1 . . . Critical Parts Destroyed 7 | . 1 . . 1 . . . . 1 4 . . . Critical Strikes 22 | . 1 1 4 4 . . . 1 4 5 2 . . Burn 3 | . . . . . . . . 1 2 . . . . Destroy 1 | . . . . 1 . . . . . . . . . Blast 1 | . . . . 1 . . . . . . . . . Smash 15 | . 1 1 4 2 . . . . 2 5 . . . Sever 2 | . . . . . . . . . . . 2 . . Melee Attacks 140 | . 6 15 17 6 5 . . 4 18 16 10 18 25 Impact 81 | . 6 15 17 6 5 . . 4 18 10 . . . Slashing 59 | . . . . . . . . . . 6 10 18 25 Piercing . | . . . . . . . . . . . . . . Sneak Attacks 40 | . 3 . 5 . 1 . . . 2 7 4 11 7 Combat Hostiles 1 | . . . . . . . . . . 1 . . . Follow-up Attacks 8 | . 2 1 3 1 . . . . . . . . 1 Damage Inflicted 14014 | 148 477 165 412 2166 664 . . 1935 3056 2273 306 1194 1218 Guns 2750 | 148 153 . . 1571 66 . . 92 720 . . . . Cannons 1477 | . 74 . . 566 275 . . 140 422 . . . . Explosions 4851 | . . . . . 256 . . 1703 1266 1328 . . 298 Melee 4861 | . 226 165 412 29 67 . . . 648 913 306 1194 901 Ramming 51 | . . . . . . . . . . 32 . . 19 Kinetic 2292 | 95 198 . . 1999 . . . . . . . . . Thermal 1821 | 53 53 . . . 341 . . 232 1142 . . . . Explosive 4656 | . . . . . 256 . . 1703 1266 1328 . . 103 Electromagnetic 333 | . . . . 138 . . . . . . . . 195 Impact 2058 | . 226 165 412 29 67 . . . 648 511 . . . Slashing 2803 | . . . . . . . . . . 402 306 1194 901 Piercing . | . . . . . . . . . . . . . . Highest Corruption 16 | . . . . . 1 1 1 1 1 7 7 7 16 Average Corruption 3 | . . . . . 1 1 1 1 1 4 7 7 8 Corruption Purged . | . . . . . . . . . . . . . . Corruption Blocked . | . . . . . . . . . . . . . . Effects 75 | . . . . . 2 4 2 4 5 22 11 6 19 Message Errors 21 | . . . . . 1 1 . . 1 9 5 . 4 Matter Fused 21 | . . . . . . . 2 1 1 4 4 2 7 Heat Flow Errors 6 | . . . . . . . . 1 . 1 . 3 1 Energy Discharges 9 | . . . . . . 2 . 1 1 4 . . 1 Parts Fused 1 | . . . . . . . . . . . 1 . . Data Loss (minor) 12 | . . . . . 1 1 . 1 1 3 . 1 4 Data Loss (major) 1 | . . . . . . . . . . . 1 . . Misfires 2 | . . . . . . . . . 1 1 . . . Alerts 1 | . . . . . . . . . . . . . 1 Misdirections 1 | . . . . . . . . . . . . . 1 Overload Shots 5 | . . . . . . . . . 5 . . . . Overflow Damage 1393 | . 65 25 40 14 62 . . 57 148 403 . 420 159 Projectiles 72 | . . . . . 13 . . . 29 30 . . . Explosions 148 | . . . . . 12 . . 57 47 32 . . . Melee 1173 | . 65 25 40 14 37 . . . 72 341 . 420 159 Knockbacks 18 | . 2 . 2 8 . . . . 1 5 . . . Impact 8 | . 1 . 2 . . . . . 1 4 . . . Kinetic 8 | . 1 . . 7 . . . . . . . . . Secondary 2 | . . . . 1 . . . . . 1 . . . Self-Inflicted Damage 236 | . . . . . . . . . . 117 . . 119 Shots 4 | . . . . . . . . . . 2 . . 2 Rammed 3 | . . . . . . . . . . 1 . . 2 Targets Rammed 3 | . . . . . . . . . . 1 . . 2 Kicked . | . . . . . . . . . . . . . . Crushed . | . . . . . . . . . . . . . . Highest Temperature 398 | 2 96 . . 267 90 . . 307 292 221 . 398 179 Average Temperature 63 | 2 23 . . 59 26 . . 91 82 58 . 148 22 Received Heat Transfer 2183 | . 87 48 48 594 9 . . 713 351 144 . . 189 Effects 1 | . . . . . . . . . 1 . . . . Interference 1 | . . . . . . . . . 1 . . . . Siege Activations . | . . . . . . . . . . . . . . Martial Activations . | . . . . . . . . . . . . . . Shielding Activations . | . . . . . . . . . . . . . . Robots Disrupted . | . . . . . . . . . . . . . . Combat Hostiles . | . . . . . . . . . . . . . . Robots Corrupted 6 | . 1 1 . . . . . . 2 2 . . . Combat Hostiles 3 | . 1 1 . . . . . . 1 . . . . Parts Fried 9 | . 3 1 . . 1 . . . 1 2 . . 1 Impact Corruptions 22 | . 2 1 3 1 1 . . . 5 9 . . . Robots Melted . | . . . . . . . . . . . . . . Combat Hostiles . | . . . . . . . . . . . . . . Parts Melted 9 | . . . . . . . . . 9 . . . . Heat Transferred 2791 | 125 124 . . . 481 . . 407 1654 . . . . Parts Sabotaged . | . . . . . . . . . . . . . . Parts Stolen . | . . . . . . . . . . . . . . Parts Stripped . | . . . . . . . . . . . . . . Power Chain Reactions . | . . . . . . . . . . . . . . Alert | -11 -10 -9 -9 -8 -7 -7 -7 -6 -6 -6 -6 -6 -6 ------- Run | Yrd Mat Mat Min Mat Fac Low Dat Pro Fac Ext Cet Arc Hub Maximum Alert Level 3 | . . . . 1 . . . . 2 1 1 1 3 Low Security (%) 71 | 100 100 100 100 89 100 . . . 52 60 9 7 9 Level 1 17 | . . . . 10 . . . . 8 39 90 92 6 Level 2 5 | . . . . . . . . . 39 . . . 7 Level 3 5 | . . . . . . . . . . . . . 75 Level 4 . | . . . . . . . . . . . . . . Level 5 . | . . . . . . . . . . . . . . High Security . | . . . . . . . . . . . . . . Max Security . | . . . . . . . . . . . . . . Peak Influence 1026 | 10 91 20 63 254 106 . . . 541 342 348 362 1026 Initial 237 | . . . 3 . 106 . . . . 237 184 111 116 Average 173 | 1 31 7 17 112 23 . . . 241 188 294 326 717 Influence Increases 5259 | 40 206 56 85 635 145 . . 280 846 975 234 341 1416 Destroy 0b10 Robot/C 2420 | . 120 40 60 420 60 . . 260 400 460 100 80 420 Destroy 0b10 Robot/NC 350 | 40 15 . 15 65 35 . . . 25 55 5 45 50 Destroy Leader 406 | . 20 . 10 100 20 . . 20 78 52 10 . 96 Allied During Kill 835 | . . . . . . . . . 28 258 115 125 309 Successful Hack 153 | . 15 . . 27 3 . . . 18 16 3 . 71 Disable Machine 285 | . . 15 . 15 15 . . . 45 15 . 60 120 Anti-Garrison Action 150 | . . . . . . . . . 150 . . . . Destroy Structure 270 | . 6 1 . 8 12 . . . 72 44 1 1 125 Partial Spotted 60 | . . . . . . . . . . . . 30 30 Lose Combat Pursuer 330 | . 30 . . . . . . . 30 75 . . 195 Influence Decreases 4325 | 40 206 46 95 400 377 3 . 280 361 1130 286 287 814 Entered New Map 915 | . . . 7 . 129 2 . . . 248 146 167 216 Time Decay 2445 | 40 206 41 88 370 248 1 . 270 261 422 140 120 238 Lost Part 225 | . . 5 . 30 . . . 10 40 20 . . 120 Lost Ally 440 | . . . . . . . . . 60 140 . . 240 Purge Threat 300 | . . . . . . . . . . 300 . . . Squads Dispatched 28 | . . 1 . 1 4 . . . 6 2 1 . 13 Investigation 6 | . . 1 . 1 . . . . 2 1 1 . . Extermination 4 | . . . . . 2 . . . 1 . . . 1 Reinforcement 12 | . . . . . 2 . . . . 1 . . 9 Assault 2 | . . . . . . . . . 2 . . . . Garrison 4 | . . . . . . . . . 1 . . . 3 Intercept . | . . . . . . . . . . . . . . Searches Triggered . | . . . . . . . . . . . . . . Data Miner Redirects 2 | . . . . . . . . . 1 1 . . . Construction Impeded 3 | . . . . . . . . . . 1 . . 2 Haulers Reinforced 1 | . . . . . . . . . . . . . 1 Active Scanning Responses . | . . . . . . . . . . . . . . Cargo Convoy Interrupts . | . . . . . . . . . . . . . . Stealth | -11 -10 -9 -9 -8 -7 -7 -7 -6 -6 -6 -6 -6 -6 --------- Run | Yrd Mat Mat Min Mat Fac Low Dat Pro Fac Ext Cet Arc Hub Distress Signals 22 | . 2 2 . 2 . . . . 5 3 1 2 5 Communications Jammed . | . . . . . . . . . . . . . . Distress Signals . | . . . . . . . . . . . . . . Times Spotted 177 | . 11 6 6 31 6 . . 14 30 31 5 8 29 Peak Tracking Total 10 | . 5 6 3 5 2 . . 6 5 4 5 1 10 Tactical Retreats 13 | . 1 . . . . . . . 2 3 . . 7 Traps | -11 -10 -9 -9 -8 -7 -7 -7 -6 -6 -6 -6 -6 -6 ------- Run | Yrd Mat Mat Min Mat Fac Low Dat Pro Fac Ext Cet Arc Hub Traps Triggered 8 | . . . . . . . . . 1 7 . . . Indirectly . | . . . . . . . . . . . . . . Trap Hack Attempts . | . . . . . . . . . . . . . . Triggered . | . . . . . . . . . . . . . . Disarmed . | . . . . . . . . . . . . . . Reprogrammed . | . . . . . . . . . . . . . . Reused . | . . . . . . . . . . . . . . Traps Extracted . | . . . . . . . . . . . . . . Installed . | . . . . . . . . . . . . . . Triggered . | . . . . . . . . . . . . . . Machines | -11 -10 -9 -9 -8 -7 -7 -7 -6 -6 -6 -6 -6 -6 ---------- Run | Yrd Mat Mat Min Mat Fac Low Dat Pro Fac Ext Cet Arc Hub Machines Disabled 26 | . . 1 . 1 1 . . 5 4 1 1 4 8 Max in Single Turn 5 | . . 1 . 1 1 . . 3 1 1 1 1 5 Garrison Access 3 | . . . . . . . . . 1 . . . 2 Network Hub 1 | . . . . . . . . . . . . . 1 Energy Cycler 1 | . . . . . . . . . . 1 . . . Machines Repaired . | . . . . . . . . . . . . . . Machines Dismantled . | . . . . . . . . . . . . . . Machines Sabotaged . | . . . . . . . . . . . . . . Overloaded Fab Kills . | . . . . . . . . . . . . . . Hacking | -11 -10 -9 -9 -8 -7 -7 -7 -6 -6 -6 -6 -6 -6 --------- Run | Yrd Mat Mat Min Mat Fac Low Dat Pro Fac Ext Cet Arc Hub Machines Accessed 44 | . 4 1 . 8 4 . 4 . 4 7 3 . 9 Terminals 29 | . 4 1 . 6 . . . . 2 6 3 . 7 Fabricators 3 | . . . . . 1 . . . 2 . . . . Repair Stations 3 | . . . . 1 2 . . . . . . . . Recycling Units 3 | . . . . 1 1 . . . . 1 . . . Scanalyzers . | . . . . . . . . . . . . . . Garrison Access 2 | . . . . . . . . . . . . . 2 Total Hacks 125 | . 11 2 . 22 8 . 30 . 11 16 6 . 19 Successful 80 | . 4 . . 14 4 . 30 . 7 9 2 . 10 Failed 45 | . 7 2 . 8 4 . . . 4 7 4 . 9 Catastrophic 11 | . 1 1 . 3 1 . . . . 2 2 . 1 Database Lockouts . | . . . . . . . . . . . . . . Manual 47 | . 7 . . 13 . . . . 9 7 1 . 10 Terminals 75 | . 11 2 . 17 . . . . 8 15 6 . 16 Fabricators 5 | . . . . . 2 . . . 3 . . . . Repair Stations 7 | . . . . 2 5 . . . . . . . . Recycling Units 5 | . . . . 3 1 . . . . 1 . . . Scanalyzers . | . . . . . . . . . . . . . . Garrison Access 3 | . . . . . . . . . . . . . 3 Terminal Hacks 53 | . 1 . . 7 . . 30 . 1 6 2 . 6 Record 13 | . . . . . . . 11 . . . 2 . . Part Schematic 12 | . . . . . . . 12 . . . . . . Robot Schematic 7 | . . . . . . . 7 . . . . . . Robot Analysis 3 | . . . . 3 . . . . . . . . . Prototype ID Bank 1 | . . . . . . . . . . 1 . . . Emergency Access Points 1 | . . . . . . . . . . . . . 1 Terminal Index 2 | . . . . 1 . . . . . . . . 1 Unreport Threat 2 | . . . . . . . . . . 2 . . . Locate Traps 1 | . 1 . . . . . . . . . . . . Hauler Manifests 3 | . . . . 1 . . . . . 1 . . 1 Registered Components 1 | . . . . . . . . . . . . . 1 Zone Layout 7 | . . . . 2 . . . . 1 2 . . 2 Fabricator Hacks 2 | . . . . . . . . . 2 . . . . Network Status 1 | . . . . . . . . . 1 . . . . Build 1 | . . . . . . . . . 1 . . . . Repair Station Hacks 6 | . . . . 2 4 . . . . . . . . Scan Component 3 | . . . . 1 2 . . . . . . . . Repair 3 | . . . . 1 2 . . . . . . . . Recycling Unit Hacks 2 | . . . . 1 . . . . . 1 . . . Report Inventory 2 | . . . . 1 . . . . . 1 . . . Scanalyzer . | . . . . . . . . . . . . . . Garrison Access Hacks 2 | . . . . . . . . . . . . . 2 Seal Access 2 | . . . . . . . . . . . . . 2 Unauthorized Hacks 15 | . 3 . . 4 . . . . 4 2 . . 2 Terminals 13 | . 3 . . 3 . . . . 3 2 . . 2 Assimilate 1 | . 1 . . . . . . . . . . . . Botnet 10 | . 2 . . 2 . . . . 2 2 . . 2 Operators 2 | . . . . 1 . . . . 1 . . . . Fabricators 1 | . . . . . . . . . 1 . . . . Liberate 1 | . . . . . . . . . 1 . . . . Repair Stations . | . . . . . . . . . . . . . . Recycling Units 1 | . . . . 1 . . . . . . . . . Reject 1 | . . . . 1 . . . . . . . . . Scanalyzers . | . . . . . . . . . . . . . . Garrison Access . | . . . . . . . . . . . . . . Data Cores Recovered 1 | . . . . 1 . . . . . . . . . Used 1 | . . . . 1 . . . . . . . . . Hacking Detections 32 | . 4 1 . 8 3 . . . 3 5 1 . 7 Full Trace Events 7 | . 1 1 . 1 . . . . 2 1 1 . . Feedback Events . | . . . . . . . . . . . . . . Feedback Blocked . | . . . . . . . . . . . . . . Robot Schematics Acquired 7 | . . . . . . . 7 . . . . . . Robots Built . | . . . . . . . . . . . . . . Authchips . | . . . . . . . . . . . . . . Time . | . . . . . . . . . . . . . . Total Robot Build Rating . | . . . . . . . . . . . . . . Part Schematics Acquired 12 | . . . . . . . 12 . . . . . . Parts Built 2 | . . . . . . . . . 2 . . . . Authchips . | . . . . . . . . . . . . . . Time 53 | . . . . . . . . . 53 . . . . Total Part Build Rating 12 | . . . . . . . . . 12 . . . . Parts Repaired 3 | . . . . 1 2 . . . . . . . . Time 96 | . . . . 32 64 . . . . . . . . Parts Recycled . | . . . . . . . . . . . . . . Recycled Matter . | . . . . . . . . . . . . . . Retrieved Matter . | . . . . . . . . . . . . . . Retrieved Components . | . . . . . . . . . . . . . . Parts Scanalyzed . | . . . . . . . . . . . . . . Part Schematics Acquired . | . . . . . . . . . . . . . . Parts Damaged . | . . . . . . . . . . . . . . Bothacking | -11 -10 -9 -9 -8 -7 -7 -7 -6 -6 -6 -6 -6 -6 ------------ Run | Yrd Mat Mat Min Mat Fac Low Dat Pro Fac Ext Cet Arc Hub Used RIF Installer . | . . . . . . . . . . . . . . Robots Hacked . | . . . . . . . . . . . . . . Non-combat . | . . . . . . . . . . . . . . Combat . | . . . . . . . . . . . . . . Robot Hacks Applied . | . . . . . . . . . . . . . . Relay Couplers Released 3 | . . . . . . . . . 3 . . . . Machine Destruction 2 | . . . . . . . . . 2 . . . . Programmers 1 | . . . . . . . . . 1 . . . . Fabnet Peak Effective % . | . . . . . . . . . . . . . . Robots Rewired 9 | . . . . . . . . . . 9 . . . Allies Hacked . | . . . . . . . . . . . . . . Hacks Repelled . | . . . . . . . . . . . . . . Allies | -11 -10 -9 -9 -8 -7 -7 -7 -6 -6 -6 -6 -6 -6 -------- Run | Yrd Mat Mat Min Mat Fac Low Dat Pro Fac Ext Cet Arc Hub Total Allies 28 | . . . . . . . . . 3 20 5 . . Largest Group 14 | . . . . . . . . . 3 12 14 14 14 Highest-Rated Group 790 | . . . . . . . . . 87 468 790 743 738 Highest-Rated Ally 159 | . . . . . . . . . 29 159 153 96 96 Total Orders 2 | . . . . . . . . . . . 2 . . FOLLOW 1 | . . . . . . . . . . . 1 . . GUARD 1 | . . . . . . . . . . . 1 . . Ally Attacks 311 | . . . . . . . . . 66 94 38 23 90 Total Damage 7116 | . . . . . . . . . 670 2320 1072 569 2485 Kills 60 | . . . . . . . . . 6 17 7 4 26 Allies Corrupted . | . . . . . . . . . . . . . . Allies Melted 1 | . . . . . . . . . . . . . 1 Intel | -11 -10 -9 -9 -8 -7 -7 -7 -6 -6 -6 -6 -6 -6 ------- Run | Yrd Mat Mat Min Mat Fac Low Dat Pro Fac Ext Cet Arc Hub Active Infowar (turns) 5718 | 143 546 122 280 1477 896 292 123 241 750 431 . . 417 IFF 444 | . . . . . . . . . 27 . . . 417 Terrain 28 | 28 . . . . . . . . . . . . . Structural 464 | . . . . . . . . . 464 . . . . Seismic 5270 | 115 546 122 280 1477 896 292 123 241 747 431 . . . Robot Analysis Total 3 | . . . . 3 . . . . . . . . . Derelict Logs Recovered 1 | . . . 1 . . . . . . . . . . Drone Launches . | . . . . . . . . . . . . . . Drone Recoveries . | . . . . . . . . . . . . . . Exploration | -11 -10 -9 -9 -8 -7 -7 -7 -6 -6 -6 -6 -6 -6 ------------- Run | Yrd Mat Mat Min Mat Fac Low Dat Pro Fac Ext Cet Arc Hub Turns Passed 7821 | 199 546 122 280 1608 978 292 123 743 859 1036 282 251 502 Spaces Moved 5379 | 122 321 81 234 798 429 195 88 433 452 925 241 275 785 Core 97 | 5 . . . . . . . . . . . . 92 Treads 144 | . 144 . . . . . . . . . . . . Legs 821 | 117 97 10 117 149 292 . . 16 23 . . . . Wheels 1957 | . 80 71 117 649 137 195 88 417 203 . . . . Hover 2359 | . . . . . . . . . 225 925 241 275 693 Flight 1 | . . . . . . . . . 1 . . . . Fastest Speed 43 | 50 90 90 80 80 145 135 135 150 98 48 48 43 43 Average Speed 105 | 117 130 96 100 132 179 146 136 151 133 70 48 56 46 Slowest Speed 2145 | 120 160 120 120 260 210 150 150 194 2145 102 48 110 129 Overloaded Moves . | . . . . . . . . . . . . . . Propulsion Burnouts . | . . . . . . . . . . . . . . Robots Hopped . | . . . . . . . . . . . . . . Potential Cave-ins . | . . . . . . . . . . . . . . Cave-ins Triggered . | . . . . . . . . . . . . . . Exploration Rate (%) 44 | 5 46 10 47 45 12 29 68 57 11 86 63 87 58 Regions Visited 13 Branch Regions 8 Pre-discovered Areas 1 | . . . . . . . 1 . . . . . . Known Exits Taken . | . . . . . . . . . . . . . . Unknown Exits Taken 13 | 1 1 1 1 1 1 1 1 1 1 1 1 1 . Scrap Searched 4 | . . . 1 . . 3 . . . . . . . Spaces Dug 72 | . 6 1 . 3 5 . . 4 3 40 . . 10 Terrain Destroyed 457 | . 6 1 . 5 16 . . 61 80 89 . . 199 Melee 24 | . . 1 . 2 4 . . 4 3 . . . 10 Projectile 14 | . 6 . . 3 2 . . 2 . . . . 1 AOE 419 | . . . . . 10 . . 55 77 89 . . 188 Terrain Rammed . | . . . . . . . . . . . . . . Walls Destroyed . | . . . . . . . . . . . . . . Machines Disabled . | . . . . . . . . . . . . . . Actions | -11 -10 -9 -9 -8 -7 -7 -7 -6 -6 -6 -6 -6 -6 --------- Run | Yrd Mat Mat Min Mat Fac Low Dat Pro Fac Ext Cet Arc Hub Total 6918 | 151 396 99 257 1147 597 202 91 479 602 1269 393 347 888 Wait 661 | . 10 2 4 151 89 . . 17 14 170 124 43 37 Move 5366 | 121 320 80 233 797 428 194 87 432 451 924 240 274 785 Hop . | . . . . . . . . . . . . . . Pick Up 92 | 8 11 1 1 26 12 1 . . 10 5 4 4 9 Fast Attach 82 | 8 7 . 3 20 8 3 2 . 19 2 3 3 4 Attach 27 | . . 2 . 1 3 . . . 6 4 5 1 5 Detach 14 | 1 . . 1 2 1 . . . 3 1 1 2 2 Swap 80 | . 8 . 1 12 14 . . 11 18 10 . . 6 Drop 132 | 1 18 . 3 28 19 4 2 . 25 11 6 4 11 Fire 221 | 12 19 . . 105 18 . . 15 38 10 . . 4 Melee 125 | . 3 14 11 5 5 . . 4 18 16 10 16 23 Ram 3 | . . . . . . . . . . 1 . . 2 Kick . | . . . . . . . . . . . . . . Crush . | . . . . . . . . . . . . . . Escape Stasis 52 | . . . . . . . . . . 52 . . . Rewire 63 | . . . . . . . . . . 63 . . . Trap . | . . . . . . . . . . . . . . Miscellaneous . | . . . . . . . . . . . . . . Route ------- -11/Scrapyard -10/Materials (discovered 2 exits: *Mat / [*Min]) -9/Materials -9/Mines -8/Materials -7/Factory -7/Lower Caves -7/Data Miner -6/Proximity Caves -6/Factory -6/Extension (discovered 2 exits: [*Fac] / *Cet) -6/Cetus -6/Archives (discovered 3 exits: [*Fac] / *Hub x2) -6/Hub_04(d) (discovered 2 exits: [*Fac x2]) History --------- Turn | Location | Event 17 | -11/Scrapyard | Discovered new exit (range 15) 200 | -11/Scrapyard | Entered Materials 314 | -10/Materials | Build established: Mutant 429 | -10/Materials | Discovered new exit (range 14) 551 | -10/Materials | Discovered new exit (range 16) 746 | -10/Materials | Entered another Materials area 746 | -9/Materials | Evolved 2 slots: Propulsion x2 841 | -9/Materials | Discovered new exit (range 9) 868 | -9/Materials | Entered Mines 886 | -9/Mines | Met a Derelict bent on vengeance 1092 | -9/Mines | Assembled infested the area 1100 | -9/Mines | Learned 2 Materials zone layouts 1133 | -9/Mines | Discovered new exit (range 15) 1148 | -9/Mines | Entered Materials 1148 | -8/Materials | Evolved 2 slots: Propulsion x2 1209 | -8/Materials | Build established: Scavenger-Mutant 2463 | -8/Materials | Discovered new exit (range 16) 2741 | -8/Materials | Repaired Imp. Aluminum Leg 2756 | -8/Materials | Entered Factory 2756 | -7/Factory | Evolved 2 slots: Propulsion x2 3093 | -7/Factory | Repaired Aluminum Leg 3608 | -7/Factory | Repaired Carbon-fiber Leg 3649 | -7/Factory | Discovered new exit (range 10) 3734 | -7/Factory | Entered Lower Caves 3765 | -7/Lower Caves | Encountered a Warlord checkpoint 4012 | -7/Lower Caves | A Derelict revealed a hidden shortcut to meet someone special 4026 | -7/Lower Caves | Entered Data Miner 4026 | -7/Data Miner | Discovered new exit (range 6) 4058 | -7/Data Miner | Met Data Miner 4083 | -7/Data Miner | Learned location of Section 7 (-3) 4083 | -7/Data Miner | Acquired the access code to Warlord's prototype stash 4108 | -7/Data Miner | Received God Mode back door access code from Data Miner 4149 | -7/Data Miner | Entered Proximity Caves 4419 | -6/Proximity Caves | Attracted the attention of an 0b10 base 4431 | -6/Proximity Caves | Destroyed 9 combat bots 4692 | -6/Proximity Caves | Build established: Mutant 4786 | -6/Proximity Caves | Spotted B-75 Beast 4885 | -6/Proximity Caves | Discovered new exit (range 5) 4892 | -6/Proximity Caves | Entered Factory 4892 | -6/Factory | Evolved 2 slots: Utility x2 4963 | -6/Factory | Incoming investigation squad redirected 5182 | -6/Factory | Lost 4 parts (4n) 5195 | -6/Factory | Garrison activated, responded to threat 5318 | -6/Factory | Fabricated Adv. Shield Generator (x2) 5400 | -6/Factory | Lost 3 parts (2n1w) 5739 | -6/Factory | Discovered new exit (range 13) 5751 | -6/Factory | Entered Extension 5883 | -6/Extension | Rescued a captive Derelict 5925 | -6/Extension | Rescued a captive Derelict 5934 | -6/Extension | Rescued a captive Derelict 5946 | -6/Extension | Rescued a captive Derelict 5949 | -6/Extension | Incoming investigation squad redirected 5960 | -6/Extension | Rescued a captive Derelict 5979 | -6/Extension | Rescued A7 6365 | -6/Extension | Spotted B-75 Beast 6388 | -6/Extension | Spotted B-75 Beast 6391 | -6/Extension | Allies destroyed B-75 Beast 6427 | -6/Extension | Allies destroyed B-75 Beast 6440 | -6/Extension | Lost 7 allies 6518 | -6/Extension | Rescued a captive Derelict 6520 | -6/Extension | Rescued a captive Derelict 6598 | -6/Extension | Rescued a captive Derelict 6599 | -6/Extension | Rescued a captive Derelict 6637 | -6/Extension | Energy Cycler disabled 6644 | -6/Extension | Rescued a captive Derelict 6651 | -6/Extension | Disrupted transfer network 6727 | -6/Extension | Discovered new exit (range 10) 6728 | -6/Extension | Discovered new exit (range 6) 6787 | -6/Extension | Entered Cetus 6787 | -6/Cetus | Accompanied by 11 allies (A7) 6792 | -6/Cetus | Acquired a Cetus Manufacturing Module code from A7 6799 | -6/Cetus | Spotted Cetus Guard 6800 | -6/Cetus | Spotted Cetus Guard 6808 | -6/Cetus | Spotted Cetus Guard 6809 | -6/Cetus | Spotted Cetus Guard 6814 | -6/Cetus | Allies destroyed Cetus Guard 6834 | -6/Cetus | Allies destroyed Cetus Guard 6904 | -6/Cetus | Started Cetus Manufacturing Module 6929 | -6/Cetus | Manufactured an Enhanced Grunt 6949 | -6/Cetus | Found a strange terminal 6954 | -6/Cetus | Manufactured an Enhanced Grunt 6958 | -6/Cetus | Discovered new exit (range 16) 6979 | -6/Cetus | Manufactured an Enhanced Grunt 7002 | -6/Cetus | Build established: Commander-Gladiator 7004 | -6/Cetus | Manufactured an Enhanced Grunt 7024 | -6/Cetus | Murdered A7 7027 | -6/Cetus | Extracted ID and sensor layout for unrecognized location from A7's data core 7029 | -6/Cetus | Manufactured an Enhanced Grunt 7069 | -6/Cetus | Entered Archives 7069 | -6/Archives | Accompanied by 14 allies 7111 | -6/Archives | Unable to access archive contents 7137 | -6/Archives | Discovered new exit (range 15) 7159 | -6/Archives | Discovered new exit (range 16) 7228 | -6/Archives | Discovered new exit (range 15) 7320 | -6/Archives | Entered Hub_04(d) 7320 | -6/Hub_04(d) | Accompanied by 14 allies 7416 | -6/Hub_04(d) | Discovered new exit (range 12) 7421 | -6/Hub_04(d) | Garrison activated, responded to threat 7434 | -6/Hub_04(d) | Lost 5 allies 7643 | -6/Hub_04(d) | Discovered new exit (range 8) 7706 | -6/Hub_04(d) | Build established: Scavenger-Mutant 7709 | -6/Hub_04(d) | Found Prototype Processor 7709 | -6/Hub_04(d) | Identified Exp. Targeting Computer 7726 | -6/Hub_04(d) | Network Hub disabled 7735 | -6/Hub_04(d) | Spotted Lightning 7738 | -6/Hub_04(d) | Core integrity fell below 50% 7753 | -6/Hub_04(d) | Spotted Lightning 7754 | -6/Hub_04(d) | Spotted Lightning 7758 | -6/Hub_04(d) | System corruption reached 10% 7770 | -6/Hub_04(d) | Core integrity fell below 20% 7799 | -6/Hub_04(d) | Lost 12 parts (2p7n1u2w) 7822 | -6/Hub_04(d) | Destroyed by Lightning with EMDS Last Messages --------------- 07764_ Cmb. Airjet destroyed. 07764_ Penetrated by EMDS Slug. 07765_ Acquired Hyb. Deuterium Engine. 07766_ Penetrated by EMDS Slug. 07766_ Cmb. Airjet destroyed. 07768_ System corrupted: Matter fused (-6). 07768_ Slug penetrates Wall. 07768_ Phasing Sabre destroyed. 07769_ Slug penetrates Wall. 07770_ EMDS Slug penetrates Wall. 07775_ Wall collapses. 07783_ Acquired 16 matter. 07786_ System corrupted: Component data lost. 07792_ ALERT: Potential suspicious activity detected, Programmers report to Hub_04(d) Zone 5J. 07806_ System corrupted: Matter fused (-5). 07820_ ALERT: Suspicious intruders detected, dispatching Cutter reinforcements to area. 07821_ EMDS Slug penetrates Wall. Map ----- +----------------------------------------------------+ | ?????????# ] + ! #?????## ### # # # | | ?????????# ###! #??????# ###%##+### # | | ?????????#####+####### ### ### ## # #?# " " # | | ?????????# ## #?# =#=#?# " " # | | ?????????# ##=#?# ###### #[### " " # | | ?????????# ##[#??????????## *[%=*+ # | | ?????????# #########%#???????????#=%==#######+## | | ?????????# #########+#######?????#%=%%#???# | | ?#########% # =! #?????#/!=*#???# ^ | | ?# # # * #?????#%**!#####+#### | | ## """" #%*]# ]]] #######====# # | | %+ ="""" #= + !]%]! +=%%=%!=% # """"# | | ##]="""" #%%%# ]]] ##########%# [ """"# | | ## """" #[=*############## ##????????# # """"# | | ## +/%%#?????????#### ##????????# # """"# | | ## """" # %[#?????????# ######???# # / | | ## """" # %#?????????# """ # ????# # # | | ## """" # #?????????# # ! ????# # # | | # """" # #?????????# """ # ?????# # [ # | | #! # #?????????# # ?????# ######### | | ######### #?????????#! "" # "??????# ##???????# | | #???????# #?????????# "" # ??????# #????????? | | ##???????# #?????????# T" #+##+##### ########## | | ????????#% #?????????# "" + | | "" ??????#!! #?????????# "" # ####### | | #?????# #?????????# @ # =""""" " !# | | #????? #####+#####;####]%*"T"" !" # | | "" #????# ### # = =" #!"""" | | T" #????+ H !==% # """" | | "" #????# %!%% +%"""" | | ??#????# ###?### ##+##/####### """" | | ???????###+####????# # ????# | | #????????? #??## # " " ""????# " | | ????????? """" #??# %![** ## ????#! "" | | ????????# """" #???# !* # ! ???# G | | ????????# """" #???# #?##???????# "" | | ????????# """" #???# #??????????# " | | ????????# #???# ##??????????# | | ????????? """" ##### # #??????????#+#+### | | ????????# """" + =!=### #??????????# | | ????????# """" ###### #### ##??????????+ | | ????????# """" ## * # [#### """ ???# | | ????????# ## """"" " # < / ###+### | | ????????########## ""T"" " # #### """ ????????? | | ?????????????????# " ## ##????????????????? | | ?????????????????# ## #?????????????????? | | ?????????????????# ! + #?????????????????? | | ?????????????????# ## #?????????????????? | | #####????????????# ## #?????????????????? | | #???#############+####### #?????????????????? | +----------------------------------------------------+ Best States ------------- Heat Dissipation 64 Energy Generation 25 Energy Capacity 350 Matter Stores 300 Matter Capacity 300 Sight Range 16 Terrain Scan Range 16 Terrain Scan Density 10 EM Shielding 2 Armor Coverage 300 Evasion (%) 56 Targeting Accuracy 12 Melee Accuracy 8 Core Analysis 6 Recoil Reduction 2 Particle Charging 15 Offensive Hacking 12 Defensive Hacking 12 Item Schematics ----------------- Combat Drone Bay | -7/Data Miner | Free Lgt. Regenerative Plating | -7/Data Miner | Free Multireflex Exoskeleton | -7/Data Miner | Free Gravity Neutralizer | -7/Data Miner | Free Shock Maul | -7/Data Miner | Free Linear Gravjet | -7/Data Miner | Free Imp. Thermal Shield | -7/Data Miner | Free Adv. Plasma Cannon | -7/Data Miner | Free Wave Gun | -7/Data Miner | Free Angular Momentum Engine | -7/Data Miner | Free Mic. Fission Core | -7/Data Miner | Free Micro-nuke Launcher | -7/Data Miner | Free Robot Schematics ------------------ S-27 Virus | -7/Data Miner | Free H-55 Commando | -7/Data Miner | Free M-28 Smith | -7/Data Miner | Free G-47 Trooper | -7/Data Miner | Free G-50 Soldier | -7/Data Miner | Free R-10 Processor | -7/Data Miner | Free H-66 Slayer | -7/Data Miner | Free Fabricated ------------ Adv. Shield Generator | x2 | -6/Factory | Preloaded Repaired ---------- Imp. Aluminum Leg | 41% | -8/Materials Aluminum Leg | 32% | -7/Factory Carbon-fiber Leg | 64% | -7/Factory Alien Tech Used ----------------- None Achievements -------------- None Challenges ------------ None Game ------ Seed CatalystPortableDesublimator Manual? 0 Play Time 01:15:03 Cumulative 230.0 hours Start 2025.09.08 @ 15:09:09 End 2025.09.08 @ 16:23:40 Sessions 1 Manual Loads 0 Difficulty Rogue Special Mode None Game No. 239 Rogue 239 Adventurer 0 Explorer 0 Win Type - Total 3 Types 3/0/0/0/0/0/0/0/0/0 Lore% 73 Gallery% 70 Achievement% 66 Wizard Run 0 Options --------- Layout 2 ASCII 1 Keyboard 1 Movement Vi Keybinds 0 Fullscreen 1 Font 24/Smallcaps Map View 50x44 Zoom Use 0% Tactical HUD 1 Map Filters NONE Filters NONE Steam X RUN: 801ce29d-d71f-46d0-ac41-95fe21658b7d